bitfinex/quotes_BTCUSD_20230404
["timestamp","ask_amount","ask_price","bid_price","bid_amount"]
[1680595108527,0.17143769,28016.0,28015.0,0.0309]
[1680595108740,0.6037135,28016.0,28015.0,0.0309]
[1680595109165,0.6045685,28016.0,28015.0,0.0209]
[1680595109377,0.54152781,28016.0,28015.0,0.0309]
[1680595109582,0.53952781,28016.0,28015.0,0.0209]
[1680595109796,0.104397,28016.0,28015.0,0.0299]
[1680595110004,0.011,28016.0,28015.0,0.14775475]
[1680595110405,0.051361,28016.0,28015.0,0.18415475]
[1680595110637,0.11886941,28016.0,28015.0,0.14775475]
[1680595111047,0.16047441,28016.0,28015.0,0.14775475]
[1680595111466,0.11886941,28016.0,28015.0,0.14775475]
[1680595111677,0.15985841,28016.0,28015.0,0.14775475]
[1680595111890,0.15985841,28016.0,28015.0,0.0299]
[1680595112101,0.051989,28016.0,28015.0,0.0299]
[1680595112515,0.011,28016.0,28015.0,0.0299]
[1680595114387,0.05661,28016.0,28015.0,0.0299]
[1680595115458,0.05661,28016.0,28015.0,0.37390347]
[1680595115459,0.011,28016.0,28015.0,0.37390347]
[1680595116000,0.011,28016.0,28015.0,0.41490347]
[1680595116841,0.011,28016.0,28015.0,0.37390347]
[1680595117364,0.38995808,28016.0,28015.0,0.0299]
[1680595117580,0.49060308,28016.0,28015.0,0.0299]
[1680595118494,0.49345808,28016.0,28015.0,0.0299]
[1680595118931,0.1145,28016.0,28015.0,0.0299]
[1680595119380,0.49408926,28016.0,28015.0,0.0299]
[1680595120250,0.63142797,28016.0,28015.0,0.0299]
[1680595120684,0.63042797,28016.0,28015.0,0.0209]
[1680595120929,0.63042797,28016.0,28015.0,0.0239]
[1680595121587,0.66617967,28016.0,28015.0,0.0239]
[1680595122043,0.84464967,28016.0,28015.0,0.0239]
[1680595122745,1.14464967,28016.0,28015.0,0.0239]
[1680595123605,1.14464967,28016.0,28015.0,0.0209]
[1680595123940,1.14864967,28016.0,28015.0,0.0209]
[1680595124584,1.14885967,28016.0,28015.0,0.0209]
[1680595125073,0.83284096,28016.0,28015.0,0.0209]
[1680595125292,0.83305096,28016.0,28015.0,0.0209]
[1680595126221,0.75219926,28016.0,28015.0,0.0209]
[1680595126441,0.75198926,28016.0,28015.0,0.0209]
[1680595126662,0.79507126,28016.0,28015.0,0.0209]
[1680595127768,0.75219926,28016.0,28015.0,0.0209]
[1680595128215,0.92828937,28016.0,28015.0,0.0209]
[1680595128453,0.75219926,28016.0,28015.0,0.0209]
[1680595128708,0.75219926,28016.0,28012.0,0.12108]
[1680595128937,0.75219926,28016.0,28012.0,0.1209]
[1680595129127,0.45865632,28015.0,28012.0,0.1209]
[1680595130399,0.45865632,28015.0,28012.0,0.0299]
[1680595130620,0.45865632,28015.0,28012.0,0.0209]
[1680595131024,0.51545632,28015.0,28012.0,0.0299]
[1680595132926,0.45653304,28014.0,28012.0,0.0299]
[1680595134276,0.45653304,28014.0,28012.0,0.0209]
[1680595134490,0.45853304,28014.0,28012.0,0.0299]
[1680595138111,0.3854539,28013.0,28012.0,0.0299]
[1680595139403,0.3854539,28013.0,28012.0,0.0209]
[1680595139607,0.3864539,28013.0,28012.0,0.0289]
[1680595139809,0.3854539,28013.0,28012.0,0.0209]
[1680595140540,0.3854539,28013.0,28012.0,0.0239]
[1680595142538,0.3854539,28013.0,28012.0,0.0209]
[1680595142872,0.3854539,28013.0,28012.0,0.0239]
[1680595143097,0.3854539,28013.0,28012.0,0.0209]
[1680595143309,0.3854539,28013.0,28012.0,0.0239]
[1680595144761,0.0548,28015.0,28012.0,0.0239]
[1680595144762,0.01,28016.0,28013.0,0.41085]
[1680595144990,0.01,28016.0,28015.0,1.19869187]
[1680595145211,0.35665685,28017.0,28016.0,0.0001]
[1680595145447,0.45268853,28025.0,28023.0,0.03565]
[1680595145665,0.00021,28025.0,28024.0,0.5082181]
[1680595145880,0.00021,28027.0,28024.0,0.5561721]
[1680595146103,0.028555,28028.0,28025.0,0.229559]
[1680595146104,0.028765,28028.0,28025.0,0.229559]
[1680595146321,0.028765,28028.0,28026.0,0.19482881]
[1680595146570,0.028765,28028.0,28027.0,0.01792]
[1680595146780,0.40252695,28028.0,28027.0,0.06507349]
[1680595146999,0.40252695,28028.0,28027.0,0.08475349]
[1680595147420,0.40252695,28028.0,28027.0,0.0376]
[1680595148597,0.40452695,28028.0,28027.0,0.0376]
[1680595148813,0.40252695,28028.0,28027.0,0.0376]
[1680595149031,0.40452695,28028.0,28027.0,0.0476]
[1680595149235,0.40252695,28028.0,28027.0,0.0376]
[1680595149446,0.40452695,28028.0,28027.0,0.0804567]
[1680595149966,0.40252695,28028.0,28027.0,0.0704567]
[1680595150187,0.40452695,28028.0,28027.0,0.0804567]
[1680595150405,0.40252695,28028.0,28027.0,0.0704567]
[1680595151069,0.37397195,28028.0,28027.0,0.0704567]
[1680595151766,0.37597195,28028.0,28027.0,0.0804567]
[1680595152398,0.37397195,28028.0,28027.0,0.0704567]
[1680595152620,0.37397195,28028.0,28027.0,0.0476]
[1680595152621,0.37597195,28028.0,28027.0,0.0476]
[1680595152835,0.37397195,28028.0,28027.0,0.0376]
[1680595153099,0.00221,28028.0,28027.0,0.061871]
[1680595153318,0.32947636,28030.0,28027.0,0.39847597]
[1680595153537,0.002,28028.0,28027.0,0.40493097]
[1680595153756,0.00221,28028.0,28027.0,0.42198197]
[1680595154889,0.00221,28028.0,28027.0,0.39771097]
[1680595155104,0.00021,28028.0,28027.0,0.41198197]
[1680595155313,0.00221,28028.0,28027.0,0.42198197]
[1680595157121,0.002,28028.0,28027.0,0.42198197]
[1680595157335,0.002,28028.0,28027.0,0.40493097]
[1680595157784,0.002,28028.0,28027.0,0.42274997]
[1680595158228,0.002,28028.0,28027.0,0.40493097]
[1680595158473,0.002,28028.0,28027.0,0.42288097]
[1680595160895,0.002,28028.0,28027.0,0.40860997]
[1680595161117,0.00221,28028.0,28027.0,0.30585997]
[1680595161785,0.00221,28028.0,28027.0,0.1474811]
[1680595162004,0.00221,28028.0,28027.0,0.08325]
[1680595162276,0.00221,28028.0,28027.0,0.101659]
[1680595162489,0.00221,28028.0,28027.0,0.08325]
[1680595162706,0.00221,28028.0,28027.0,0.100878]
[1680595162916,0.00221,28028.0,28027.0,0.101764]
[1680595163122,0.00221,28028.0,28027.0,0.08325]
[1680595163803,0.00221,28028.0,28027.0,0.10071]
[1680595164056,0.00221,28028.0,28027.0,0.08325]
[1680595167118,0.37043549,28028.0,28027.0,0.08325]
[1680595169396,0.37011077,28028.0,28027.0,0.08325]
[1680595173032,0.37011077,28028.0,28020.0,0.1]
[1680595173033,1.48926344,28028.0,28020.0,0.1]
[1680595173283,1.48926344,28028.0,28019.0,0.20799043]
[1680595173284,0.23321,28025.0,28019.0,0.10817043]
[1680595173509,0.0422,28024.0,28020.0,0.15180345]
[1680595173954,0.0422,28024.0,28022.0,0.0321]
[1680595174606,0.0472,28024.0,28022.0,0.0321]
[1680595174836,0.041434,28023.0,28022.0,0.0321]
[1680595175086,0.041434,28023.0,28019.0,0.00018]
[1680595175313,0.038856,28024.0,28017.0,0.049926]
[1680595175533,0.33526639,28023.0,28018.0,0.16798327]
[1680595175756,0.33526639,28023.0,28018.0,0.16816327]
[1680595175965,0.33526639,28023.0,28020.0,0.045]
[1680595176866,0.33026639,28023.0,28020.0,0.045]
[1680595177531,0.33526639,28023.0,28020.0,0.045]
[1680595177796,0.33026639,28023.0,28020.0,0.045]
[1680595177977,0.33226639,28023.0,28020.0,0.045]
[1680595178282,0.33026639,28023.0,28020.0,0.045]
[1680595178506,0.33526639,28023.0,28020.0,0.045]
[1680595178929,0.33026639,28023.0,28020.0,0.045]
[1680595179581,0.057864,28025.0,28020.0,0.045]
[1680595179582,0.37802277,28022.0,28020.0,0.045]
[1680595179797,0.37802277,28022.0,28020.0,0.04512]
[1680595180228,0.41584605,28022.0,28020.0,0.04512]
[1680595180875,0.41784605,28022.0,28020.0,0.04512]
[1680595181096,0.41784605,28022.0,28019.0,0.14352044]
[1680595181097,0.395395,28021.0,28019.0,0.00018]
[1680595181315,0.097189,28020.0,28016.0,0.00018]
[1680595181544,0.040621,28019.0,28015.0,0.20850821]
[1680595181765,0.043476,28019.0,28015.0,0.20850821]
[1680595181992,0.002855,28019.0,28015.0,0.20850821]
[1680595182654,0.045169,28019.0,28015.0,0.20850821]
[1680595183128,0.041419,28018.0,28015.0,0.20850821]
[1680595183350,0.3878745,28018.0,28015.0,0.20850821]
[1680595184014,0.3907295,28018.0,28015.0,0.20850821]
[1680595184463,0.3927295,28018.0,28015.0,0.20850821]
[1680595185122,0.3898745,28018.0,28015.0,0.20850821]
[1680595185743,0.34431851,28017.0,28015.0,0.20850821]
[1680595186387,0.039604,28016.0,28015.0,0.00018]
[1680595186633,0.342459,28016.0,28012.0,0.13588466]
[1680595186846,0.043562,28015.0,28012.0,0.13588466]
[1680595187066,0.12174165,28015.0,28012.0,0.13588466]
[1680595187284,0.043147,28014.0,28012.0,0.13588466]
[1680595188179,0.043147,28014.0,28012.0,0.02108]
[1680595188394,0.002855,28014.0,28012.0,0.0209]
[1680595188613,0.49960182,28014.0,28012.0,0.0209]
[1680595188744,0.5359421,28014.0,28012.0,0.02108]
[1680595188959,0.041828,28013.0,28012.0,0.02108]
[1680595189592,0.5381521,28014.0,28012.0,0.02096]
[1680595189807,0.040886,28013.0,28012.0,0.02108]
[1680595190013,0.5387971,28014.0,28012.0,0.02108]
[1680595190221,0.002,28013.0,28012.0,0.02108]
[1680595190435,0.5387971,28014.0,28012.0,0.02108]
[1680595190642,0.5359421,28014.0,28012.0,0.02108]
[1680595190844,0.45847582,28014.0,28010.0,0.02092]
[1680595191054,0.45826582,28014.0,28010.0,0.0208]
[1680595191263,0.38712137,28013.0,28010.0,0.0208]
[1680595191467,0.38733137,28013.0,28010.0,0.0208]
[1680595192056,0.38712137,28013.0,28010.0,0.0208]
[1680595192266,0.39012137,28013.0,28010.0,0.0208]
[1680595192689,0.39012137,28013.0,28010.0,0.07426559]
[1680595192905,0.42944001,28013.0,28010.0,0.07426559]
[1680595193137,9e-05,28015.0,28012.0,0.3752]
[1680595193369,0.0090553,28025.0,28015.0,0.41085]
[1680595193594,0.37299711,28023.0,28017.0,0.049926]
[1680595193821,0.37320711,28023.0,28020.0,0.0509]
[1680595194052,0.37320711,28023.0,28021.0,0.14189681]
[1680595194272,0.042199,28022.0,28021.0,0.14189681]
[1680595194502,0.00021,28022.0,28020.0,0.0509]
[1680595194947,0.00021,28022.0,28020.0,0.065175]
[1680595195171,0.30021,28022.0,28020.0,0.065175]
[1680595195385,0.30021,28022.0,28020.0,0.0745477]
[1680595195609,0.00121,28022.0,28020.0,0.084175]
[1680595195829,0.00021,28023.0,28020.0,0.100825]
[1680595196046,0.001,28022.0,28020.0,0.125825]
[1680595196261,0.001,28022.0,28020.0,0.100825]
[1680595196262,0.00021,28022.0,28020.0,0.100825]
[1680595196485,0.00121,28022.0,28020.0,0.119825]
[1680595196712,0.00121,28022.0,28021.0,0.05647344]
[1680595196943,0.00121,28022.0,28021.0,0.07074844]
[1680595197174,0.00121,28022.0,28021.0,0.13054844]
[1680595197823,0.001,28022.0,28021.0,0.33815328]
[1680595198044,0.0090553,28025.0,28021.0,0.26925844]
[1680595199413,0.3,28027.0,28024.0,0.25616981]
[1680595199690,0.30021,28027.0,28024.0,0.114273]
[1680595199897,0.30021,28027.0,28024.0,0.014273]
[1680595200124,0.30021,28027.0,28025.0,0.0586]
[1680595200290,0.30021,28027.0,28025.0,0.072872]
[1680595200514,0.30021,28027.0,28025.0,0.0586]
[1680595200719,0.74434083,28027.0,28025.0,0.0586]
[1680595201299,0.30021,28027.0,28025.0,0.0626]
[1680595201512,0.00021,28027.0,28025.0,0.0626]
[1680595202433,0.30021,28027.0,28025.0,0.0626]
[1680595203761,0.30021,28027.0,28025.0,0.0586]
[1680595203997,0.30021,28027.0,28025.0,0.0626]
[1680595204173,0.30021,28027.0,28025.0,0.0586]
[1680595204578,0.30021,28027.0,28025.0,0.0626]
[1680595206501,0.35792915,28026.0,28025.0,0.0626]
[1680595206730,0.65813915,28026.0,28025.0,0.0586]
[1680595206951,0.69889815,28026.0,28025.0,0.0586]
[1680595207406,0.340969,28026.0,28025.0,0.0586]
[1680595207646,0.30021,28026.0,28025.0,0.0586]
[1680595207874,0.00021,28026.0,28025.0,0.11624629]
[1680595208570,0.00021,28026.0,28025.0,0.12024629]
[1680595208801,0.00021,28026.0,28025.0,0.13726322]
[1680595209034,0.00021,28027.0,28025.0,0.15483222]
[1680595209265,0.00021,28027.0,28026.0,0.118524]
[1680595209486,0.00021,28028.0,28026.0,0.174518]
[1680595209710,0.00021,28028.0,28027.0,0.01765]
[1680595210180,0.00021,28028.0,28027.0,0.08075]
[1680595210402,0.00021,28028.0,28027.0,0.0631]
[1680595210848,0.00021,28028.0,28027.0,0.081333]
[1680595211082,0.00021,28028.0,28027.0,0.095604]
[1680595211293,0.00021,28028.0,28027.0,0.096604]
[1680595211960,0.00021,28028.0,28027.0,0.14987991]
[1680595213326,0.35123131,28031.0,28027.0,0.14887991]
[1680595213551,0.35123131,28031.0,28027.0,0.27254372]
[1680595213835,0.35123131,28031.0,28028.0,0.018425]
[1680595213836,0.00021,28031.0,28028.0,0.018425]
[1680595214067,0.00021,28031.0,28028.0,0.132695]
[1680595214292,0.00021,28031.0,28028.0,0.11427]
[1680595214488,0.3,28032.0,28029.0,0.07264993]
[1680595214736,0.3,28032.0,28029.0,0.06920993]
[1680595215157,0.68315149,28032.0,28030.0,0.064]
[1680595215552,0.38585929,28031.0,28030.0,0.064]
[1680595215751,0.68585929,28031.0,28030.0,0.064]
[1680595216099,0.02301898,28033.0,28030.0,0.07743899]
[1680595216322,0.02288,28033.0,28031.0,0.018161]
[1680595216535,0.38626516,28033.0,28031.0,0.018161]
[1680595216776,0.38626516,28033.0,28032.0,0.0698]
[1680595218737,0.38626516,28033.0,28032.0,0.0708]
[1680595219406,0.38626516,28033.0,28032.0,0.07070086]
[1680595221892,0.38626516,28033.0,28032.0,0.06970086]
[1680595224039,0.42719357,28033.0,28032.0,0.06970086]
[1680595224492,0.38626516,28033.0,28032.0,0.06970086]
[1680595224929,0.44206516,28033.0,28032.0,0.06970086]
[1680595225182,0.47587435,28033.0,28032.0,0.07070086]
[1680595228712,0.47601333,28033.0,28032.0,0.07070086]
[1680595229646,0.47587435,28033.0,28032.0,0.07070086]
[1680595233101,0.51619335,28033.0,28032.0,0.07070086]
[1680595233304,0.47587435,28033.0,28032.0,0.07070086]
[1680595239263,0.32477804,28032.0,28029.0,0.00012]
[1680595239487,0.30017804,28032.0,28028.0,0.014271]
[1680595239700,0.30017804,28032.0,28030.0,0.0122]
[1680595239913,0.0336734,28031.0,28030.0,0.0122]
[1680595240336,0.0336734,28031.0,28030.0,0.030072]
[1680595240765,0.0336734,28031.0,28030.0,0.029714]
[1680595240979,0.0336734,28031.0,28030.0,0.032862]
[1680595241412,0.0336734,28031.0,28030.0,0.0162]
[1680595242301,0.0894734,28031.0,28030.0,0.033891]
[1680595243474,0.0894734,28031.0,28030.0,0.0162]
[1680595243703,0.0894734,28031.0,28030.0,0.033591]
[1680595243932,0.0894734,28031.0,28030.0,0.034384]
[1680595244439,0.0894734,28031.0,28030.0,0.0162]
[1680595244677,0.0894734,28031.0,28030.0,0.034009]
[1680595245567,0.0894734,28031.0,28030.0,0.0162]
[1680595245568,0.53258211,28031.0,28030.0,0.0162]
[1680595246016,0.49890871,28031.0,28030.0,0.0162]
[1680595246925,0.55110148,28031.0,28030.0,0.0122]
[1680595247149,0.55110148,28031.0,28030.0,0.0132]
[1680595247150,0.55210148,28031.0,28030.0,0.0132]
[1680595248066,0.55110148,28031.0,28030.0,0.0122]
[1680595248297,0.55110148,28031.0,28030.0,0.0132]
[1680595248298,0.55210148,28031.0,28030.0,0.0132]
[1680595248529,0.55110148,28031.0,28030.0,0.0122]
[1680595248761,0.55210148,28031.0,28030.0,0.0132]
[1680595249745,0.50004769,28031.0,28030.0,0.0197]
[1680595249969,0.05981629,28031.0,28030.0,0.0197]
[1680595250197,0.05967731,28031.0,28030.0,0.0197]
[1680595250903,0.45809377,28031.0,28030.0,0.0197]
[1680595251124,0.45823275,28031.0,28030.0,0.0197]
[1680595252258,0.35809377,28031.0,28030.0,0.0197]
[1680595252478,0.41339377,28031.0,28030.0,0.0197]
[1680595254690,0.0553,28031.0,28030.0,0.0542569]
[1680595255609,0.09609242,28031.0,28030.0,0.0542569]
[1680595255830,0.0553,28031.0,28030.0,0.0542569]
[1680595258631,0.0553,28031.0,28030.0,0.0197]
[1680595261991,0.47268625,28031.0,28030.0,0.0197]
[1680595262213,0.56844664,28031.0,28030.0,0.0197]
[1680595262427,0.56844664,28031.0,28027.0,0.00018]
[1680595262428,0.64819008,28031.0,28027.0,0.00018]
[1680595262650,0.0558,28028.0,28026.0,0.37862604]
[1680595262866,0.0558,28028.0,28026.0,0.24808492]
[1680595263307,0.0558,28028.0,28026.0,0.12031411]
[1680595263531,0.0558,28028.0,28026.0,0.12019411]
[1680595263761,0.0558,28028.0,28027.0,0.0437]
[1680595264646,0.0558,28028.0,28027.0,0.0477]
[1680595265937,0.0558,28028.0,28027.0,0.0437]
[1680595266155,0.0558,28028.0,28027.0,0.0477]
[1680595266375,0.0558,28028.0,28027.0,0.0437]
[1680595266597,0.0568,28028.0,28027.0,0.0447]
[1680595267888,0.001,28028.0,28027.0,0.0447]
[1680595269187,0.001,28028.0,28027.0,0.08239117]
[1680595271594,0.001,28028.0,28027.0,0.0447]
[1680595275543,0.43510848,28028.0,28027.0,0.0447]
[1680595278018,0.47520848,28028.0,28027.0,0.0447]
[1680595278506,0.51522648,28028.0,28027.0,0.0447]
[1680595278693,0.47520848,28028.0,28027.0,0.0447]
[1680595279605,0.47520848,28028.0,28027.0,0.001]
[1680595279817,0.51513448,28028.0,28027.0,0.001]
[1680595280032,0.47520848,28028.0,28027.0,0.001]
[1680595284506,0.47526848,28028.0,28026.0,0.0380538]
[1680595284728,0.04123898,28028.0,28026.0,0.0379938]
[1680595284950,0.0411,28028.0,28026.0,0.0379938]
[1680595285615,0.0401,28028.0,28026.0,0.0379938]
[1680595285808,0.0421,28028.0,28026.0,0.0379938]
[1680595286495,0.0421,28028.0,28026.0,0.08453352]
[1680595287599,0.0421,28028.0,28026.0,0.0379938]
[1680595288035,0.07575877,28028.0,28026.0,0.0379938]
[1680595288271,0.03565877,28028.0,28026.0,0.0379938]
[1680595291170,0.03565877,28028.0,28027.0,0.018093]
[1680595291375,0.03565877,28028.0,28026.0,0.0379938]
[1680595291563,0.03565877,28028.0,28027.0,0.018506]
[1680595291784,0.03565877,28028.0,28026.0,0.0379938]
[1680595292000,0.03565877,28028.0,28027.0,0.017978]
[1680595292229,0.03565877,28028.0,28026.0,0.0379938]
[1680595292663,0.03365877,28028.0,28027.0,0.018803]
[1680595292836,0.03365877,28028.0,28026.0,0.0379938]
[1680595293055,0.03565877,28028.0,28027.0,0.001]
[1680595293261,0.03365877,28028.0,28026.0,0.0379938]
[1680595293455,0.03565877,28028.0,28026.0,0.08310632]
[1680595293615,0.03565877,28028.0,28027.0,0.018137]
[1680595293809,0.03365877,28028.0,28027.0,0.018137]
[1680595294015,0.42246913,28029.0,28028.0,0.90873907]
[1680595294212,0.42260811,28029.0,28028.0,0.90873907]
[1680595294418,0.42260811,28029.0,28028.0,1.00804161]
[1680595294877,0.00013898,28029.0,28028.0,1.00804161]
[1680595295082,0.39355018,28030.0,28028.0,1.00804161]
[1680595295253,0.39368916,28030.0,28028.0,1.00804161]
[1680595295672,0.39368916,28030.0,28028.0,1.00904161]
[1680595295938,0.39368916,28030.0,28028.0,1.00804161]
[1680595296115,0.39568916,28030.0,28028.0,1.00904161]
[1680595296320,0.39568916,28030.0,28029.0,0.10388683]
[1680595297103,0.39568916,28030.0,28028.0,0.90873907]
[1680595297104,0.39368916,28030.0,28028.0,0.90873907]
[1680595297343,0.4781944,28030.0,28029.0,0.002]
[1680595297561,0.5211604,28030.0,28029.0,0.002]
[1680595299057,0.083366,28030.0,28029.0,0.002]
[1680595299196,0.0404,28030.0,28029.0,0.07420634]
[1680595299621,0.082732,28030.0,28029.0,0.07420634]
[1680595301459,0.082732,28030.0,28029.0,0.002]
[1680595302228,0.082732,28030.0,28029.0,0.07522384]
[1680595302805,0.0404,28030.0,28029.0,0.07522384]
[1680595304185,0.082254,28030.0,28029.0,0.07522384]
[1680595305059,0.082254,28030.0,28029.0,0.15272384]
[1680595305486,0.080914,28030.0,28029.0,0.15272384]
[1680595305704,0.0404,28030.0,28029.0,0.15272384]
[1680595305927,0.00029839,28030.0,28029.0,0.15272384]
[1680595306154,0.0401,28030.0,28029.0,0.15272384]
[1680595306566,0.069935,28030.0,28029.0,0.15272384]
[1680595306780,0.0401,28030.0,28029.0,0.25888813]
[1680595307268,0.0401,28030.0,28029.0,0.15272384]
[1680595307702,0.0401,28030.0,28029.0,0.25272384]
[1680595307914,0.0401,28030.0,28029.0,0.15272384]
[1680595308851,0.38488881,28032.0,28029.0,0.25272384]
[1680595309318,0.38488881,28032.0,28029.0,0.15272384]
[1680595309560,0.43358786,28030.0,28029.0,0.0795]
[1680595309784,0.46358586,28030.0,28029.0,0.0795]
[1680595310001,0.370398,28030.0,28029.0,0.0795]
[1680595310669,0.370398,28030.0,28029.0,0.0775]
[1680595310886,0.370398,28030.0,28029.0,0.0785]
[1680595311138,0.343498,28030.0,28029.0,0.0775]
[1680595311350,0.343498,28030.0,28029.0,0.0795]
[1680595311999,0.346352,28030.0,28029.0,0.0795]
[1680595312227,0.343498,28030.0,28029.0,0.0795]
[1680595312562,0.343498,28030.0,28029.0,0.13971086]
[1680595314046,0.043498,28030.0,28029.0,0.13971086]
[1680595314268,0.343288,28030.0,28029.0,0.13971086]
[1680595314485,0.343498,28030.0,28029.0,0.13971086]
[1680595315355,0.043498,28030.0,28029.0,0.13971086]
[1680595315570,0.043288,28030.0,28029.0,0.13971086]
[1680595316721,0.043288,28030.0,28029.0,0.06221086]
[1680595318211,0.043288,28030.0,28029.0,0.002]
[1680595318426,0.046142,28030.0,28029.0,0.002]
[1680595318645,0.45221753,28030.0,28029.0,0.002]
[1680595318863,0.75242753,28030.0,28029.0,0.002]
[1680595324096,0.75242753,28030.0,28029.0,0.02133667]
[1680595325999,0.85456686,28030.0,28029.0,0.02133667]
[1680595326225,0.75242753,28030.0,28029.0,0.02133667]
[1680595335958,0.346352,28030.0,28029.0,0.02133667]
[1680595336370,0.343498,28030.0,28029.0,0.02133667]
[1680595337589,0.78502222,28030.0,28029.0,0.02133667]
[1680595339815,0.029998,28030.0,28029.0,0.02133667]
[1680595340038,0.08488881,28032.0,28029.0,0.34921967]
[1680595340039,0.00021,28032.0,28029.0,0.34921967]
[1680595340266,0.00021,28032.0,28030.0,0.106144]
[1680595340540,0.00021,28032.0,28031.0,0.031217]
[1680595341012,0.00021,28032.0,28031.0,0.03741917]
[1680595341743,0.00021,28032.0,28031.0,0.13741917]
[1680595341993,0.00021,28032.0,28031.0,0.13941917]
[1680595342239,0.00021,28032.0,28031.0,0.13741917]
[1680595342458,0.00021,28032.0,28031.0,0.19093414]
[1680595342680,0.00021,28032.0,28031.0,0.29504372]
[1680595342681,0.00011313,28032.0,28031.0,0.29504372]
[1680595343418,0.00011313,28032.0,28031.0,0.29516372]
[1680595343869,0.00011313,28032.0,28031.0,0.29316372]
[1680595344086,0.00011313,28032.0,28031.0,0.29422372]
[1680595344335,0.00011313,28032.0,28031.0,0.29322372]
[1680595344547,0.00011313,28032.0,28031.0,0.29237153]
[1680595349386,0.00011313,28032.0,28031.0,0.24085656]
[1680595351013,0.00011313,28032.0,28031.0,0.31675656]
[1680595352841,0.00011313,28032.0,28031.0,0.32075656]
[1680595354469,0.00011313,28032.0,28031.0,0.31681656]
[1680595354692,0.00011313,28032.0,28031.0,0.31675656]
[1680595354914,0.00011313,28032.0,28031.0,0.37744722]
[1680595355765,0.00011313,28032.0,28031.0,0.34725322]
[1680595356419,0.00011313,28032.0,28031.0,0.37668922]
[1680595357789,0.00011313,28032.0,28031.0,0.31599856]
[1680595358544,0.00011313,28032.0,28031.0,0.24208298]
[1680595358807,0.00011313,28032.0,28031.0,0.31115808]
[1680595359036,0.02288,28033.0,28032.0,0.1]
[1680595359268,0.02288,28033.0,28032.0,0.07026459]
[1680595359750,0.02288,28033.0,28032.0,0.10857375]
[1680595359990,0.02288,28033.0,28032.0,0.14007375]
[1680595360201,0.02288,28033.0,28032.0,0.15649497]
[1680595361076,0.02288,28033.0,28032.0,0.23259497]
[1680595362197,0.02288,28033.0,28032.0,0.23159497]
[1680595369375,0.02288,28033.0,28032.0,0.19328581]
[1680595373049,0.02288,28033.0,28032.0,0.11718581]
[1680595374443,0.46068682,28033.0,28032.0,0.04692122]
[1680595374701,0.48934682,28033.0,28032.0,0.04692122]
[1680595374917,0.02288,28033.0,28032.0,0.04692122]
[1680595375587,0.02288,28033.0,28032.0,0.05092122]
[1680595375770,0.02288,28033.0,28032.0,0.04692122]
[1680595377497,0.02288,28033.0,28030.0,0.00012]
[1680595377725,0.48614777,28033.0,28032.0,0.0109]
[1680595377912,0.48635777,28033.0,28032.0,0.0109]
[1680595381987,0.48635777,28033.0,28032.0,0.0069]
[1680595382213,0.48614777,28033.0,28032.0,0.0069]
[1680595382450,0.48635777,28033.0,28032.0,0.0069]
[1680595384213,0.02309,28033.0,28032.0,0.0069]
[1680595384427,0.02288,28033.0,28032.0,0.037425]
[1680595384639,0.02288,28033.0,28032.0,0.0069]
[1680595385071,0.02288,28033.0,28032.0,0.02058509]
[1680595386802,0.45168346,28035.0,28032.0,0.02058509]
[1680595387018,1.28392319,28034.0,28032.0,0.08607273]
[1680595387229,0.029251,28033.0,28032.0,0.08607273]
[1680595387689,0.43405095,28034.0,28032.0,0.02058509]
[1680595391234,0.00021,28035.0,28032.0,0.16739364]
[1680595391463,1.70515366,28036.0,28033.0,0.05322108]
[1680595391690,1.31353355,28035.0,28033.0,0.05322108]
[1680595391931,1.31278255,28034.0,28033.0,0.05322108]
[1680595392158,1.28390455,28034.0,28033.0,0.05322108]
[1680595392380,1.28411455,28035.0,28033.0,0.05322108]
[1680595392572,1.28390455,28035.0,28033.0,0.05322108]
[1680595393056,1.67323999,28035.0,28033.0,0.05322108]
[1680595393272,1.31401055,28034.0,28033.0,0.05322108]
[1680595393730,1.31401055,28034.0,28033.0,0.05422108]
[1680595393963,1.28390455,28034.0,28033.0,0.07292108]
[1680595394167,1.31301955,28034.0,28033.0,0.07292108]
[1680595394385,1.28390455,28034.0,28033.0,0.07392108]
[1680595395062,1.28411455,28034.0,28033.0,0.07392108]
[1680595395490,1.28390455,28034.0,28033.0,0.07392108]
[1680595395951,0.00021,28035.0,28033.0,0.07392108]
[1680595396173,1.28390455,28035.0,28033.0,0.07392108]
[1680595396417,1.74441088,28035.0,28033.0,0.07392108]
[1680595396643,1.28390455,28034.0,28033.0,0.07292108]
[1680595397491,0.00021,28035.0,28033.0,0.07292108]
[1680595397805,0.46394813,28035.0,28033.0,0.07292108]
[1680595398022,0.46415813,28035.0,28033.0,0.07292108]
[1680595398456,1.28388896,28034.0,28033.0,0.0197]
[1680595398675,1.31340096,28034.0,28033.0,0.0197]
[1680595399544,1.28388896,28034.0,28033.0,0.0197]
[1680595399762,1.28388896,28034.0,28033.0,0.0237]
[1680595399988,1.28388896,28034.0,28033.0,0.0197]
[1680595400204,1.31282796,28034.0,28033.0,0.0307]
[1680595400419,1.28388896,28034.0,28033.0,0.0197]
[1680595400614,1.28388896,28034.0,28033.0,0.0307]
[1680595400832,1.28388896,28034.0,28033.0,0.0197]
[1680595401064,1.31204796,28034.0,28033.0,0.0377]
[1680595401494,1.28388896,28034.0,28033.0,0.0377]
[1680595402354,1.28388896,28034.0,28033.0,0.0197]
[1680595402569,1.28388896,28034.0,28033.0,0.0307]
[1680595403471,1.31373496,28034.0,28033.0,0.0307]
[1680595403937,1.31261996,28034.0,28033.0,0.0307]
[1680595404206,1.28388896,28034.0,28033.0,0.0307]
[1680595404639,1.31268196,28034.0,28033.0,0.0307]
[1680595404857,1.28388896,28034.0,28033.0,0.0307]
[1680595405077,1.31250296,28034.0,28033.0,0.0307]
[1680595405293,1.28388896,28034.0,28033.0,0.0307]
[1680595407049,1.28388896,28034.0,28033.0,0.04425783]
[1680595409316,1.31239696,28034.0,28033.0,0.04425783]
[1680595409543,1.28388896,28034.0,28033.0,0.04425783]
[1680595410422,1.70806739,28034.0,28033.0,0.04425783]
[1680595410945,1.67913839,28034.0,28033.0,0.04425783]
[1680595411151,1.70747839,28034.0,28033.0,0.04425783]
[1680595411581,1.70768839,28034.0,28033.0,0.04425783]